fUSD/lending_fUSD_20250923
["ID","MTS","AMOUNT","RATE_DAILY","PERIOD"]
[387175101,1758606675012,-400.0,0.00020939,2]
[387175102,1758606675021,-708.2,0.00020939,2]
[387175103,1758606675031,-203.58229015,0.00020939,2]
[387175104,1758606675040,-1094.34,0.00020939,2]
[387175105,1758606675049,-400.0,0.00020939,2]
[387175106,1758606675059,-400.0,0.00020939,2]
[387175107,1758606675068,-214.85,0.00020939,2]
[387175108,1758606675078,-593.45,0.00020939,2]
[387175109,1758606675087,-880.86,0.00020939,2]
[387175110,1758606675096,-150.0,0.00020949,4]
[387175111,1758606675106,-250.0,0.00020968,2]
[387175112,1758606675115,-208.216,0.00020968,2]
[387175113,1758606675124,-160.954,0.00020968,2]
[387175114,1758606675133,-214.403,0.00020968,2]
[387175115,1758606675143,-158.0,0.00020968,2]
[387175116,1758606675152,-2495.61065851,0.00020986,2]
[387175117,1758606675161,-1000.0,0.00020986,2]
[387175118,1758606675171,-250.0,0.00020987,2]
[387175119,1758606675181,-195.0,0.00020987,2]
[387175120,1758606675190,-1000.0,0.00020999,2]
[387175121,1758606675199,-1000.0,0.00020999,2]
[387175122,1758606675208,-2611.56377467,0.00021,2]
[387175123,1758606675217,-1000.0,0.00021,2]
[387175124,1758606675227,-400.0,0.00021039,2]
[387175125,1758606675236,-400.0,0.00021039,2]
[387175126,1758606675244,-400.0,0.00021039,2]
[387175127,1758606675254,-408.41032585,0.00021039,2]
[387175128,1758606675263,-404.12377941,0.00021039,2]
[387175129,1758606675274,-400.0,0.00021039,2]
[387175130,1758606675283,-400.0,0.00021039,2]
[387175131,1758606675293,-400.0,0.00021039,2]
[387175132,1758606675302,-515.55439972,0.00021039,2]
[387175133,1758606675311,-400.0,0.00021039,2]
[387175134,1758606675320,-400.0,0.00021039,2]
[387175135,1758606675337,-459.36352769,0.00021039,2]
[387175136,1758606675348,-525.4877552,0.00021039,2]
[387175137,1758606675358,-400.0,0.00021039,2]
[387175138,1758606675367,-400.0,0.00021039,2]
[387175139,1758606675377,-400.0,0.00021039,2]
[387175140,1758606675386,-400.0,0.00021039,2]
[387175141,1758606675396,-470.35899731,0.00021039,2]
[387175142,1758606675406,-400.0,0.00021039,2]
[387175143,1758606675415,-251.09789077,0.00021039,2]
[387175144,1758606675425,-532.23,0.00021039,2]
[387175145,1758606675434,-298.52879285,0.00021039,2]
[387175146,1758606675444,-400.0,0.00021039,2]
[387175147,1758606675453,-166.29205857,0.00021039,2]
[387175148,1758606675463,-400.0,0.00021039,2]
[387175149,1758606675472,-400.0,0.00021039,2]
[387175150,1758606675481,-400.0,0.00021039,2]
[387175151,1758606675491,-400.0,0.00021039,2]
[387175152,1758606675500,-400.0,0.00021039,2]
[387175153,1758606675510,-414.47,0.00021039,2]
[387175154,1758606675519,-400.0,0.00021039,2]
[387175155,1758606675529,-399.65739758,0.00021039,2]
[387175156,1758606675539,-400.0,0.00021039,2]
[387175157,1758606675548,-400.0,0.00021039,2]
[387175158,1758606675558,-407.70704959,0.00021039,2]
[387175159,1758606675568,-400.0,0.00021039,2]
[387175160,1758606675578,-519.19144388,0.00021039,2]
[387175161,1758606675588,-278.3085134,0.00021039,2]
[387175162,1758606675598,-400.0,0.00021039,2]
[387175163,1758606675607,-400.0,0.00021039,2]
[387175164,1758606675617,-400.0,0.00021039,2]
[387175165,1758606675627,-400.0,0.00021039,2]
[387175166,1758606675636,-400.0,0.00021039,2]
[387175167,1758606675646,-400.0,0.00021039,2]
[387175168,1758606675655,-366.4241195,0.00021039,2]
[387175169,1758606675665,-400.0,0.00021039,2]
[387175170,1758606675675,-400.0,0.00021039,2]
[387175171,1758606675684,-400.0,0.00021039,2]
[387175172,1758606675694,-400.0,0.00021039,2]
[387175173,1758606675703,-400.0,0.00021039,2]
[387175174,1758606675712,-400.0,0.00021039,2]
[387175175,1758606675721,-400.0,0.00021039,2]
[387175176,1758606675731,-400.0,0.0002104,2]
[387175177,1758606675741,-250.22461489,0.0002104,2]
[387175178,1758606675750,-546.26,0.0002104,2]
[387175179,1758606675759,-459.17,0.0002104,2]
[387175180,1758606675769,-400.0,0.0002104,2]
[387175181,1758606675780,-594.39,0.0002104,2]
[387175182,1758606675790,-167.146727,0.0002104,2]
[387175183,1758606675800,-400.0,0.0002104,2]
[387175184,1758606675813,-400.0,0.0002104,2]
[387175185,1758606675823,-400.0,0.0002104,2]
[387175186,1758606675832,-413.61,0.0002104,2]
[387175187,1758606675843,-1791.94,0.0002104,2]
[387175188,1758606675852,-400.0,0.0002104,2]
[387175189,1758606675861,-727.44,0.0002104,2]
[387175190,1758606675871,-424.1,0.0002104,2]
[387175191,1758606675881,-680.28,0.0002104,2]
[387175192,1758606675892,-400.0,0.0002104,2]
[387175193,1758606675901,-400.0,0.0002104,2]
[387175194,1758606675911,-740.8,0.0002104,2]
[387175195,1758606675920,-780.25,0.0002104,2]
[387175196,1758606675929,-787.95,0.0002104,2]
[387175197,1758606675939,-400.9,0.0002104,2]
[387175198,1758606675948,-573.0,0.0002104,2]
[387175199,1758606675957,-439.84,0.0002104,2]
[387175200,1758606675967,-807.44,0.0002104,2]
[387175201,1758606675976,-1136.38,0.0002104,2]
[387175202,1758606675985,-2423.02,0.0002104,2]
[387175203,1758606675994,-1564.56139073,0.0002105,2]
[387175204,1758606676004,-3925.0,0.00021057,2]
[387175205,1758606676014,-1002.51331932,0.00021068,2]
[387175206,1758606676023,-995.51676082,0.00021068,2]
[387175207,1758606676032,-841.76577726,0.00021068,2]
[387175208,1758606676041,-1500.0,0.00021068,2]
[387175209,1758606676051,-563.0,0.00021071,2]
[387175210,1758606676060,-400.0,0.00021071,2]
[387175211,1758606676069,-454.75,0.00021071,2]
[387175212,1758606676079,-604.44,0.00021071,2]
[387175213,1758606676088,-533.49,0.00021071,2]
[387175214,1758606676097,-694.1,0.00021071,2]
[387175215,1758606676107,-400.0,0.00021071,2]
[387175216,1758606676116,-177.0283243,0.00021071,2]
[387175217,1758606676125,-422.59,0.00021071,2]
[387175218,1758606676134,-400.0,0.00021071,2]
[387175219,1758606676144,-717.78,0.00021071,2]
[387175220,1758606676153,-431.15,0.00021071,2]
[387175221,1758606676163,-400.0,0.00021071,2]
[387175222,1758606676172,-427.27,0.00021071,2]
[387175223,1758606676182,-614.75,0.00021071,2]
[387175224,1758606676192,-669.49,0.00021071,2]
[387175225,1758606676201,-400.0,0.00021071,2]
[387175226,1758606676211,-381.52,0.00021071,2]
[387175227,1758606676220,-400.0,0.00021071,2]
[387175228,1758606676230,-418.8,0.00021071,2]
[387175229,1758606676239,-573.35,0.00021071,2]
[387175230,1758606676248,-403.2,0.00021071,2]
[387175231,1758606676257,-400.0,0.00021071,2]
[387175232,1758606676267,-400.0,0.00021071,2]
[387175233,1758606676280,-685.05,0.00021071,2]
[387175234,1758606676289,-400.0,0.00021071,2]
[387175235,1758606676298,-435.99,0.00021071,2]
[387175236,1758606676307,-592.9,0.00021071,2]
[387175237,1758606676316,-528.93,0.00021071,2]
[387175238,1758606676327,-796.37,0.00021071,2]
[387175239,1758606676337,-400.0,0.00021071,2]
[387175240,1758606676346,-461.3,0.00021071,2]
[387175241,1758606676355,-400.0,0.00021071,2]
[387175242,1758606676364,-400.0,0.00021071,2]
[387175243,1758606676374,-400.0,0.00021071,2]
[387175244,1758606676384,-454.76297875,0.00021071,2]
[387175245,1758606676393,-400.0,0.00021071,2]
[387175246,1758606676402,-551.65,0.00021071,2]
[387175247,1758606676412,-445.76,0.00021071,2]
[387175248,1758606676421,-620.26,0.00021071,2]
[387175249,1758606676430,-474.03,0.00021071,2]
[387175250,1758606676441,-400.0,0.00021071,2]
[387175251,1758606676450,-400.0,0.00021071,2]
[387175252,1758606676459,-400.0,0.00021071,2]
[387175253,1758606676469,-400.0,0.00021071,2]
[387175254,1758606676478,-400.0,0.00021071,2]
[387175255,1758606676488,-1134.69,0.00021071,2]
[387175256,1758606676497,-553.2,0.00021071,2]
[387175257,1758606676507,-400.0,0.00021071,2]
[387175258,1758606676516,-400.0,0.00021071,2]
[387175259,1758606676525,-560.87,0.00021071,2]
[387175260,1758606676534,-669.97,0.00021071,2]
[387175261,1758606676544,-518.47,0.00021071,2]
[387175262,1758606676553,-603.36,0.00021071,2]
[387175263,1758606676563,-507.24,0.00021071,2]
[387175264,1758606676572,-1226.65,0.00021071,2]
[387175265,1758606676582,-400.0,0.00021071,2]
[387175266,1758606676591,-510.08,0.00021071,2]
[387175267,1758606676601,-400.0,0.00021071,2]
[387175268,1758606676611,-2244.82,0.00021071,2]
[387175269,1758606676620,-3137.54,0.00021071,2]
[387175270,1758606676630,-3479.82,0.00021071,2]
[387175271,1758606676639,-478.17,0.00021071,2]
[387175272,1758606676649,-400.0,0.00021071,2]
[387175273,1758606676659,-1313.4,0.00021071,2]
[387175274,1758606676668,-400.0,0.00021071,2]
[387175275,1758606676677,-766.42,0.00021071,2]
[387175276,1758606676686,-400.0,0.00021071,2]
[387175277,1758606676696,-631.18,0.00021071,2]
[387175278,1758606676706,-9774.27257195,0.00021078,2]
[387175279,1758606676715,-517.18988198,0.0002109,2]
[387175280,1758606676725,-285.60804473,0.0002109,2]
[387175281,1758606676735,-400.0,0.0002109,2]
[387175282,1758606676744,-479.31,0.0002109,2]
[387175283,1758606676753,-453.7,0.0002109,2]
[387175284,1758606676763,-626.98,0.0002109,2]
[387175285,1758606676773,-328.38394016,0.0002109,2]
[387175286,1758606676784,-400.0,0.0002109,2]
[387175287,1758606676795,-600.75,0.0002109,2]
[387175288,1758606676810,-400.0,0.0002109,2]
[387175289,1758606676819,-595.41,0.0002109,2]
[387175290,1758606676828,-400.0,0.0002109,2]
[387175291,1758606676839,-400.0,0.0002109,2]
[387175292,1758606676848,-400.0,0.0002109,2]
[387175293,1758606676857,-400.0,0.0002109,2]
[387175294,1758606676866,-400.0,0.0002109,2]
[387175295,1758606676876,-400.0,0.0002109,2]
[387175296,1758606676886,-609.2,0.0002109,2]
[387175297,1758606676895,-400.0,0.0002109,2]
[387175298,1758606676905,-400.0,0.0002109,2]
[387175299,1758606676916,-400.0,0.0002109,2]
[387175300,1758606676926,-572.39,0.0002109,2]
[387175301,1758606676936,-400.0,0.0002109,2]
[387175302,1758606676945,-710.43,0.0002109,2]
[387175303,1758606676955,-400.0,0.0002109,2]
[387175304,1758606676966,-633.16,0.0002109,2]
[387175305,1758606676979,-400.0,0.0002109,2]
[387175306,1758606676989,-473.7,0.0002109,2]
[387175307,1758606676999,-400.0,0.0002109,2]
[387175308,1758606677009,-400.0,0.0002109,2]
[387175309,1758606677019,-719.16,0.0002109,2]
[387175310,1758606677030,-407.66,0.0002109,2]
[387175311,1758606677040,-619.74,0.0002109,2]
[387175312,1758606677050,-637.23,0.0002109,2]
[387175313,1758606677059,-474.07,0.0002109,2]
[387175314,1758606677069,-872.07,0.0002109,2]
[387175315,1758606677079,-400.0,0.0002109,2]
[387175316,1758606677088,-1253.57,0.0002109,2]
[387175317,1758606677098,-400.0,0.0002109,2]
[387175318,1758606677108,-400.0,0.0002109,2]
[387175319,1758606677117,-702.37,0.0002109,2]
[387175320,1758606677127,-400.0,0.0002109,2]
[387175321,1758606677137,-400.0,0.0002109,2]
[387175322,1758606677146,-400.0,0.0002109,2]
[387175323,1758606677156,-400.0,0.0002109,2]
[387175324,1758606677166,-400.0,0.0002109,2]
[387175325,1758606677177,-803.52,0.0002109,2]
[387175326,1758606677187,-623.72,0.0002109,2]
[387175327,1758606677200,-758.11,0.0002109,2]
[387175328,1758606677415,-400.0,0.0002109,2]
[387175329,1758606677425,-400.0,0.0002109,2]
[387175330,1758606677434,-944.55,0.0002109,2]
[387175331,1758606677444,-887.18,0.0002109,2]
[387175332,1758606677453,-400.0,0.00021091,2]
[387175333,1758606677462,-528.52453844,0.00021091,2]
[387175334,1758606677471,-400.0,0.00021091,2]
[387175335,1758606677481,-400.0,0.00021091,2]
[387175336,1758606677490,-400.0,0.00021091,2]
[387175337,1758606677500,-400.0,0.00021091,2]
[387175338,1758606677509,-400.0,0.00021091,2]
[387175339,1758606677519,-400.0,0.00021091,2]
[387175340,1758606677528,-400.0,0.00021091,2]
[387175341,1758606677539,-399.07442193,0.00021091,2]
[387175342,1758606677548,-400.0,0.00021091,2]
[387175343,1758606677557,-400.0,0.00021091,2]
[387175344,1758606677567,-324.35008436,0.00021091,2]
[387175345,1758606677576,-449.74,0.00021091,2]
[387175346,1758606677586,-560.23,0.00021091,2]
[387175347,1758606677595,-400.0,0.00021091,2]
[387175348,1758606677605,-400.0,0.00021091,2]
[387175349,1758606677614,-400.0,0.00021091,2]
[387175350,1758606677624,-642.29652873,0.00021091,2]
[387175351,1758606677633,-502.61,0.00021091,2]
[387175352,1758606677643,-694.79,0.00021091,2]
[387175353,1758606677653,-1317.09,0.00021091,2]
[387175354,1758606677663,-1372.63,0.00021091,2]
[387175355,1758606677673,-943.76,0.00021091,2]
[387175356,1758606677683,-400.0,0.00021091,2]
[387175357,1758606677694,-400.0,0.00021091,2]
[387175358,1758606677703,-543.44,0.00021091,2]
[387175359,1758606677713,-867.38,0.00021091,2]
[387175360,1758606677723,-400.0,0.00021091,2]
[387175361,1758606677732,-400.0,0.00021091,2]
[387175362,1758606677742,-1566.28,0.00021091,2]
[387175363,1758606677751,-150.0,0.00021092,2]
[387175364,1758606677761,-500.0,0.00021092,2]
[387175365,1758606677771,-1508.0,0.00021092,2]
[387175366,1758606677780,-471.0,0.00021092,2]
[387175367,1758606677790,-203.81202595,0.00021092,2]
[387175368,1758606677802,-500.0,0.00021092,2]
[387175369,1758606677812,-500.0,0.00021092,2]
[387175370,1758606677822,-466.0,0.00021092,2]
[387175371,1758606677831,-447.0,0.00021092,2]
[387175372,1758606677840,-500.0,0.00021092,2]
[387175373,1758606677850,-400.0,0.00021092,2]
[387175374,1758606677859,-400.0,0.00021092,2]
[387175375,1758606677869,-403.17,0.00021092,2]
[387175376,1758606677878,-410.56738866,0.00021092,2]
[387175377,1758606677887,-404.66419722,0.00021092,2]
[387175378,1758606677897,-400.0,0.00021092,2]
[387175379,1758606677907,-400.0,0.00021092,2]
[387175380,1758606677916,-400.0,0.00021092,2]
[387175381,1758606677926,-400.0,0.00021092,2]
[387175382,1758606677935,-422.99,0.00021092,2]
[387175383,1758606677944,-400.0,0.00021092,2]
[387175384,1758606677953,-400.0,0.00021092,2]
[387175385,1758606677962,-400.0,0.00021092,2]
[387175386,1758606677971,-400.0,0.00021092,2]
[387175387,1758606677982,-400.0,0.00021092,2]
[387175388,1758606677991,-400.0,0.00021092,2]
[387175389,1758606678001,-403.73272392,0.00021092,2]
[387175390,1758606678010,-494.63271338,0.00021092,2]
[387175391,1758606678019,-407.08801168,0.00021092,2]
[387175392,1758606678030,-372.39097905,0.00021092,2]
[387175393,1758606678039,-323.23128505,0.00021092,2]
[387175394,1758606678049,-400.0,0.00021092,2]
[387175395,1758606678058,-400.0,0.00021092,2]
[387175396,1758606678068,-400.0,0.00021092,2]
[387175397,1758606678078,-400.0,0.00021092,2]
[387175398,1758606678088,-400.0,0.00021092,2]
[387175399,1758606678098,-400.0,0.00021092,2]
[387175400,1758606678107,-405.04280005,0.00021092,2]
[387175401,1758606678116,-400.0,0.00021092,2]
[387175402,1758606678126,-406.21026985,0.00021092,2]
[387175403,1758606678136,-400.0,0.00021092,2]
[387175404,1758606678145,-500.0,0.00021092,14]
[387175405,1758606678154,-404.21427753,0.00021092,2]
[387175406,1758606678164,-400.0,0.00021092,2]
[387175407,1758606678173,-400.0,0.00021092,2]
[387175408,1758606678183,-400.0,0.00021092,2]
[387175409,1758606678193,-333.33608749,0.00021092,2]
[387175410,1758606678202,-400.0,0.00021092,2]
[387175411,1758606678212,-411.68,0.00021092,2]
[387175412,1758606678221,-400.0,0.00021092,2]
[387175413,1758606678231,-406.71769769,0.00021092,2]
[387175414,1758606678241,-400.0,0.00021092,2]
[387175415,1758606678251,-400.0,0.00021092,2]
[387175416,1758606678260,-400.0,0.00021092,2]
[387175417,1758606678270,-400.0,0.00021092,2]
[387175418,1758606678279,-400.0,0.00021092,2]
[387175419,1758606678289,-175.42370127,0.00021092,2]
[387175420,1758606678299,-400.0,0.00021092,2]
[387175421,1758606678309,-400.0,0.00021092,2]
[387175422,1758606678319,-539.58315693,0.00021092,2]
[387175423,1758606678328,-400.0,0.00021092,2]
[387175424,1758606678338,-306.98184428,0.00021092,2]
[387175425,1758606678347,-400.0,0.00021092,2]
[387175426,1758606678357,-400.0,0.00021092,2]
[387175427,1758606678367,-400.0,0.00021092,2]
[387175428,1758606678376,-400.0,0.00021092,2]
[387175429,1758606678386,-400.0,0.00021092,2]
[387175430,1758606678395,-400.0,0.00021092,2]
[387175431,1758606678405,-400.0,0.00021092,2]
[387175432,1758606678417,-199.51514294,0.00021092,2]
[387175433,1758606678427,-400.0,0.00021092,2]
[387175434,1758606678436,-400.0,0.00021092,2]
[387175435,1758606678445,-400.0,0.00021092,2]
[387175436,1758606678454,-239.21,0.00021092,2]
[387175437,1758606678463,-400.0,0.00021092,2]
[387175438,1758606678473,-430.64,0.00021092,2]
[387175439,1758606678482,-400.0,0.00021092,2]
[387175440,1758606678492,-400.0,0.00021092,2]
[387175441,1758606678502,-400.0,0.00021092,2]
[387175442,1758606678512,-400.0,0.00021092,2]
[387175443,1758606678522,-296.72,0.00021092,2]
[387175444,1758606678531,-400.0,0.00021092,2]
[387175445,1758606678541,-333.42211495,0.00021092,2]
[387175446,1758606678550,-429.28,0.00021092,2]
[387175447,1758606678560,-400.0,0.00021092,2]
[387175448,1758606678569,-400.0,0.00021092,2]
[387175449,1758606678579,-720.6,0.00021092,2]
[387175450,1758606678588,-400.0,0.00021092,2]
[387175451,1758606678597,-400.0,0.00021092,2]
[387175452,1758606678606,-400.0,0.00021092,2]
[387175453,1758606678616,-400.0,0.00021092,2]
[387175454,1758606678625,-400.0,0.00021092,2]
[387175455,1758606678634,-540.18,0.00021092,2]
[387175456,1758606678644,-400.0,0.00021092,2]
[387175457,1758606678653,-500.48,0.00021092,2]
[387175458,1758606678663,-460.67,0.00021092,2]
[387175459,1758606678672,-400.0,0.00021092,2]
[387175460,1758606678682,-400.0,0.00021092,2]
[387175461,1758606678691,-400.0,0.00021092,2]
[387175462,1758606678700,-400.0,0.00021092,2]
[387175463,1758606678709,-400.0,0.00021092,2]
[387175464,1758606678719,-400.0,0.00021092,2]
[387175465,1758606678728,-400.0,0.00021092,2]
[387175466,1758606678739,-400.0,0.00021092,2]
[387175467,1758606678749,-400.0,0.00021092,2]
[387175468,1758606678759,-400.0,0.00021092,2]
[387175469,1758606678769,-400.0,0.00021092,2]
[387175470,1758606678778,-707.53,0.00021092,2]
[387175471,1758606678787,-400.0,0.00021092,2]
[387175472,1758606678798,-400.0,0.00021092,2]
[387175473,1758606678816,-520.4,0.00021092,2]
[387175474,1758606678826,-400.0,0.00021092,2]
[387175475,1758606678835,-400.0,0.00021092,2]
[387175476,1758606678846,-344.06,0.00021092,2]
[387175477,1758606678855,-400.0,0.00021092,2]
[387175478,1758606678865,-400.0,0.00021092,2]
[387175479,1758606678875,-400.0,0.00021092,2]
[387175480,1758606678885,-400.0,0.00021092,2]
[387175481,1758606678896,-400.0,0.00021092,2]
[387175482,1758606678906,-442.88482668,0.00021092,2]
[387175483,1758606678916,-400.0,0.00021092,2]
[387175484,1758606678926,-400.0,0.00021092,2]
[387175485,1758606678936,-400.0,0.00021092,2]
[387175486,1758606678945,-431.34,0.00021092,2]
[387175487,1758606678955,-400.0,0.00021092,2]
[387175488,1758606678964,-400.0,0.00021092,2]
[387175489,1758606678975,-400.0,0.00021092,2]
[387175490,1758606678985,-400.0,0.00021092,2]
[387175491,1758606678995,-400.0,0.00021092,2]
[387175492,1758606679005,-400.0,0.00021092,2]
[387175493,1758606679014,-400.0,0.00021092,2]
[387175494,1758606679024,-555.13,0.00021092,2]
[387175495,1758606679034,-400.0,0.00021092,2]
[387175496,1758606679044,-400.0,0.00021092,2]
[387175497,1758606679053,-400.0,0.00021092,2]
[387175498,1758606679063,-400.0,0.00021092,2]
[387175499,1758606679073,-400.0,0.00021092,2]
[387175500,1758606679083,-400.0,0.00021092,2]
[387175501,1758606679093,-400.0,0.00021092,2]
[387175502,1758606679102,-821.12,0.00021092,2]
[387175503,1758606679112,-400.0,0.00021092,2]
[387175504,1758606679123,-400.0,0.00021092,2]
[387175505,1758606679132,-400.0,0.00021092,2]
[387175506,1758606679142,-400.0,0.00021092,2]
[387175507,1758606679151,-400.0,0.00021092,2]
[387175508,1758606679160,-400.0,0.00021092,2]
[387175509,1758606679170,-400.0,0.00021092,2]
[387175510,1758606679179,-400.0,0.00021092,2]
[387175511,1758606679189,-400.0,0.00021092,2]
[387175512,1758606679199,-400.0,0.00021092,2]
[387175513,1758606679210,-400.0,0.00021092,2]
[387175514,1758606679219,-400.0,0.00021092,2]
[387175515,1758606679228,-706.34,0.00021092,2]
[387175516,1758606679239,-400.0,0.00021092,2]
[387175517,1758606679248,-400.0,0.00021092,2]
[387175518,1758606679258,-1759.45,0.00021092,2]
[387175519,1758606679267,-544.21,0.00021092,2]
[387175520,1758606679277,-400.0,0.00021092,2]
[387175521,1758606679286,-400.0,0.00021092,2]
[387175522,1758606679296,-400.0,0.00021092,2]
[387175523,1758606679305,-400.0,0.00021092,2]
[387175524,1758606679314,-400.0,0.00021092,2]
[387175525,1758606679323,-400.0,0.00021092,2]
[387175526,1758606679333,-431.44,0.00021092,2]
[387175527,1758606679342,-568.99,0.00021092,2]
[387175528,1758606679351,-252.83373875,0.00021092,2]
[387175529,1758606679361,-400.0,0.00021092,2]
[387175530,1758606679370,-517.07,0.00021092,2]
[387175531,1758606679380,-400.0,0.00021092,2]
[387175532,1758606679389,-623.33,0.00021092,2]
[387175533,1758606679399,-400.0,0.00021092,2]
[387175534,1758606679408,-400.0,0.00021092,2]
[387175535,1758606679418,-546.18,0.00021092,2]
[387175536,1758606679427,-400.0,0.00021092,2]
[387175537,1758606679436,-400.0,0.00021092,2]
[387175538,1758606679446,-5720.27,0.00021092,2]
[387175539,1758606679455,-400.0,0.00021092,2]
[387175540,1758606679464,-400.0,0.00021092,2]
[387175541,1758606679474,-440.55,0.00021092,2]
[387175542,1758606679484,-400.0,0.00021092,2]
[387175543,1758606679493,-400.0,0.00021092,2]
[387175544,1758606679503,-667.61,0.00021092,2]
[387175545,1758606679513,-400.0,0.00021092,2]
[387175546,1758606679523,-743.54,0.00021092,2]
[387175547,1758606679532,-461.52,0.00021092,2]
[387175548,1758606679541,-847.6,0.00021092,2]
[387175549,1758606679551,-400.0,0.00021092,2]
[387175550,1758606679560,-400.0,0.00021092,2]
[387175551,1758606679569,-400.0,0.00021093,2]
[387175552,1758606679579,-230.6,0.00021094,2]
[387175553,1758606679588,-788.09,0.000211,2]
[387175554,1758606679597,-1000.0,0.00021121,2]
[387175555,1758606679606,-1000.0,0.00021121,2]
[387175556,1758606679616,-167.88889972,0.00021121,2]
[387175557,1758606679625,-1000.0,0.00021121,2]
[387175558,1758606679634,-1000.0,0.00021121,2]
[387175559,1758606679643,-1000.0,0.00021121,2]
[387175560,1758606679653,-571.03054024,0.00021121,2]
[387175561,1758606679663,-150.0,0.00021129,4]
[387175562,1758606679673,-168.72,0.00021175,2]
[387175563,1758606679682,-11476.73221229,0.00021191,2]
[387175564,1758606679691,-246.87565,0.000212,2]
[387175565,1758606679701,-3925.0,0.00021212,2]
[387175566,1758606679710,-443.52376574,0.00021213,2]
[387175567,1758606679719,-400.0,0.00021213,2]
[387175568,1758606679728,-400.0,0.00021213,2]
[387175569,1758606679740,-490.21,0.00021213,2]
[387175570,1758606679749,-400.0,0.00021213,2]
[387175571,1758606679759,-400.0,0.00021213,2]
[387175572,1758606679768,-708.2,0.00021213,2]
[387175573,1758606679778,-400.0,0.00021213,2]
[387175574,1758606679787,-400.0,0.00021213,2]
[387175575,1758606679797,-1094.34,0.00021213,2]
[387175576,1758606679810,-593.45,0.00021213,2]
[387175577,1758606679820,-880.86,0.00021213,2]
[387175578,1758606679830,-177.42610094,0.00021231,2]
[387175579,1758606679839,-150.0,0.00021238,4]
[387175580,1758606679849,-205.53536824,0.00021244,2]
[387175581,1758606679858,-300.97285617,0.00021244,2]
[387175582,1758606679867,-151.0,0.00021244,2]
[387175583,1758606679877,-151.0,0.00021244,2]
[387175584,1758606679886,-151.0,0.00021244,2]
[387175585,1758606679895,-151.0,0.00021244,2]
[387175586,1758606679904,-151.0,0.00021244,2]
[387175587,1758606679913,-151.0,0.00021244,2]
[387175588,1758606679922,-151.0,0.00021244,2]
[387175589,1758606679931,-151.92582929,0.00021244,2]
[387175590,1758606679941,-1229.0,0.00021268,2]
[387175591,1758606679950,-1244.00292779,0.00021268,2]
[387175592,1758606679959,-817.0,0.00021268,2]
[387175593,1758606679969,-817.0,0.00021268,2]
[387175594,1758606679978,-817.0,0.00021268,2]
[387175595,1758606679988,-817.0,0.00021268,2]
[387175596,1758606679997,-817.0,0.00021268,2]
[387175597,1758606680006,-817.0,0.00021268,2]
[387175598,1758606680015,-817.0,0.00021268,2]
[387175599,1758606680024,-777.83524063,0.00021268,2]
[387175600,1758606680033,-334.5472959,0.00021301,2]